fUST/lending_fUST_20260202
["ID","MTS","AMOUNT","RATE_DAILY","PERIOD"]
[404223301,1769975438510,-2617.4416058,0.0003644,30]
[404223713,1769975444089,-1948.8942909,0.0003644,30]
[404223715,1769975444101,-660.112334,0.0003644,30]
[404223731,1769975446047,-1993.33,0.0003643,10]
[404223732,1769975446057,-2446.4112751,0.0003644,30]
[404223733,1769975446068,-251.2277259,0.0003644,30]
[404223734,1769975645971,500.0,0.00036819,120]
[404223735,1769975646210,510.07555816,0.00036819,120]
[404223743,1769975749947,150.0,0.00023306,120]
[404223744,1769975750315,150.0,0.00025803,120]
[404223745,1769975750680,156.89,0.000283,120]
[404223746,1769975798706,-182.6599999,0.00012649,2]
[404223747,1769975809526,-155.37,0.00012649,2]
[404223748,1769975833944,5000.0,0.00012446,2]
[404223749,1769975856202,5000.0,0.00012446,2]
[404223750,1769975878651,0.01,0.00012446,2]
[404223751,1769975878674,4999.99,0.00012446,2]
[404223752,1769975900300,5000.0,0.00012446,2]
[404223753,1769975918688,-154.99399113,0.00012649,2]
[404223754,1769975918712,-157.39955595,0.00012823,2]
[404223755,1769975922535,0.02,0.00012446,2]
[404223756,1769975922563,4999.98,0.00012446,2]
[404223757,1769975953474,5000.0,0.00012446,2]
[404223758,1769975975881,0.03,0.00012446,2]
[404223759,1769975975904,4695.95902364,0.00012446,2]
[404223760,1769976036989,-16.89979797,0.0001254,2]
[404223761,1769976037001,-155.95542803,0.0001254,2]
[404223762,1769976037010,-16.89979797,0.0001254,2]
[404223763,1769976130509,5000.0,0.00012446,2]
[404223764,1769976139347,304.05097636,0.00012446,2]
[404223765,1769976139370,4695.94902364,0.00012446,2]
[404223766,1769976147244,5000.0,0.00012446,2]
[404223767,1769976154907,304.06097636,0.00012446,2]
[404223768,1769976154931,4695.93902364,0.00012446,2]
[404223769,1769976162717,5000.0,0.00012446,2]
[404223770,1769976170706,304.07097636,0.00012446,2]
[404223771,1769976170729,4695.92902364,0.00012446,2]
[404223772,1769976178453,5000.0,0.00012446,2]
[404223773,1769976186338,304.08097636,0.00012446,2]
[404223774,1769976186361,4695.91902364,0.00012446,2]
[404223775,1769976194384,5000.0,0.00012446,2]
[404223776,1769976202704,304.09097636,0.00012446,2]
[404223777,1769976202728,3643.82855413,0.00012446,2]
[404223778,1769976211519,5000.0,0.00012446,2]
[404223779,1769976219545,1356.18144587,0.00012446,2]
[404223780,1769976219576,2212.91751125,0.00012446,2]
[404223781,1769976234760,5000.0,0.00012446,2]
[404223782,1769976257207,2787.09248875,0.00012446,2]
[404223783,1769976257901,-2212.90751125,0.00012446,2]
[404223784,1769976280213,5000.0,0.00012446,2]
[404223785,1769976302994,574.1949775,0.00012446,2]
[404223786,1769976303016,4425.8050225,0.00012446,2]
[404223787,1769976325388,5000.0,0.00012446,2]
[404223788,1769976338878,-164.31,0.0001254,2]
[404223791,1769976341034,-387.00973349,0.0001254,2]
[404223792,1769976347137,-28.78046854,0.0001254,2]
[404223793,1769976347156,-893.05748588,0.00012595,2]
[404223794,1769976347176,-150.0,0.00012617,2]
[404223795,1769976347195,-186.48947444,0.0001275,2]
[404223796,1769976347213,-300.0,0.00012819,2]
[404223797,1769976347232,-74.44745342,0.00012819,2]
[404223798,1769976349115,574.2049775,0.00012446,2]
[404223799,1769976349138,4425.7950225,0.00012446,2]
[404223800,1769976427879,5574.2149775,0.0001,2]
[404223801,1769976427913,10000.01,0.0001,2]
[404223802,1769976427936,10000.01,0.0001,2]
[404223803,1769976427958,2946.9850225,0.0001,2]
[404223804,1769976429099,-608.87698486,0.00012691,2]
[404223805,1769976550135,-4391.12301514,0.00012691,2]
[404223806,1769976550158,-150.0,0.00012718,2]
[404223807,1769976550179,-250.86735021,0.00012746,2]
[404223808,1769976550201,-300.0,0.00012817,2]
[404223809,1769976550220,-300.0,0.00012817,2]
[404223810,1769976550241,-545.69486712,0.00012818,2]
[404223811,1769976550264,-500.0,0.00012818,2]
[404223812,1769976550285,-500.0,0.00012818,2]
[404223813,1769976550307,-500.0,0.00012818,2]
[404223814,1769976550327,-628.86539004,0.00012818,2]
[404223815,1769976550349,-500.0,0.00012818,2]
[404223816,1769976550368,-499.6163048,0.00012818,2]
[404223817,1769976550388,-500.0,0.00012818,2]
[404223818,1769976550410,-500.0,0.00012818,2]
[404223819,1769976550429,-500.0,0.00012818,2]
[404223820,1769976550449,-500.0,0.00012818,2]
[404223821,1769976550474,-500.0,0.00012818,2]
[404223822,1769976550495,-500.0,0.00012818,2]
[404223823,1769976550516,-500.0,0.00012818,2]
[404223824,1769976550535,-500.0,0.00012818,2]
[404223825,1769976550555,-500.0,0.00012818,2]
[404223826,1769976550575,-500.0,0.00012818,2]
[404223827,1769976550598,-500.0,0.00012818,2]
[404223828,1769976550618,-500.0,0.00012818,2]
[404223829,1769976550638,-500.0,0.00012818,2]
[404223830,1769976550658,-500.0,0.00012818,2]
[404223831,1769976550678,-500.0,0.00012818,2]
[404223832,1769976550697,-500.0,0.00012818,2]
[404223833,1769976550717,-500.0,0.00012818,2]
[404223834,1769976550818,-500.0,0.00012818,2]
[404223835,1769976550840,-500.0,0.00012818,2]
[404223836,1769976550862,-500.0,0.00012818,2]
[404223837,1769976550884,-500.0,0.00012818,2]
[404223838,1769976550903,-500.0,0.00012818,2]
[404223839,1769976550926,-500.0,0.00012818,2]
[404223840,1769976550948,-493.36225006,0.00012818,2]
[404223841,1769976562114,-6.63774994,0.00012818,2]
[404223842,1769976562135,-500.0,0.00012818,2]
[404223843,1769976562159,-500.0,0.00012818,2]
[404223844,1769976562178,-500.0,0.00012818,2]
[404223845,1769976562198,-500.0,0.00012818,2]
[404223846,1769976562218,-500.0,0.00012818,2]
[404223847,1769976562238,-500.0,0.00012818,2]
[404223848,1769976562260,-500.0,0.00012818,2]
[404223849,1769976562281,-500.0,0.00012818,2]
[404223850,1769976562301,-500.0,0.00012818,2]
[404223851,1769976562324,-500.0,0.00012818,2]
[404223852,1769976562345,-500.0,0.00012818,2]
[404223853,1769976562366,-500.0,0.00012818,2]
[404223854,1769976562387,-500.0,0.00012818,2]
[404223855,1769976562408,-500.0,0.00012818,2]
[404223856,1769976562430,-500.0,0.00012818,2]
[404223857,1769976562453,-500.0,0.00012818,2]
[404223858,1769976562473,-500.0,0.00012818,2]
[404223859,1769976562495,-500.0,0.00012818,2]
[404223860,1769976562516,-500.0,0.00012818,2]
[404223861,1769976562536,-350.0,0.00012818,2]
[404223862,1769976562557,-500.0,0.00012818,2]
[404223863,1769976562578,-235.0855091,0.00012818,2]
[404223864,1769976562607,-500.0,0.00012818,2]
[404223865,1769976562627,-500.0,0.00012818,2]
[404223866,1769976562647,-500.0,0.00012818,2]
[404223867,1769976562669,-500.0,0.00012818,2]
[404223868,1769976562688,-500.0,0.00012818,2]
[404223869,1769976562711,-201.08603275,0.00012818,2]
[404223870,1769976611278,267.15681039,0.0003683,31]
[404223871,1769976611379,250.0,0.0003683,31]
[404223872,1769976611983,250.0,0.0003683,31]
[404223873,1769976626516,398.3609922,0.00011835,2]
[404223909,1769976631848,-5000.0,0.0001269,2]
[404223911,1769976631858,-600.0,0.0001269,2]
[404223913,1769976631868,-300.0,0.00012817,2]
[404223915,1769976631877,-300.0,0.00012817,2]
[404223917,1769976631886,-1200.0,0.00012817,2]
[404223919,1769976631895,-5256.44432637,0.00012818,2]
[404223920,1769976631905,-298.91396725,0.00012818,2]
[404223922,1769976631915,-500.0,0.00012818,2]
[404223924,1769976631924,-500.0,0.00012818,2]
[404223926,1769976631933,-500.0,0.00012818,2]
[404223928,1769976631943,-500.0,0.00012818,2]
[404223930,1769976631953,-500.0,0.00012818,2]
[404223932,1769976631963,-500.0,0.00012818,2]
[404223934,1769976631972,-500.0,0.00012818,2]
[404223936,1769976631982,-500.0,0.00012818,2]
[404223938,1769976631991,-171.38878017,0.00012818,2]
[404223940,1769976632001,-500.0,0.00012818,2]
[404223942,1769976632010,-500.0,0.00012818,2]
[404223944,1769976632019,-500.0,0.00012818,2]
[404223946,1769976632029,-500.0,0.00012818,2]
[404223947,1769976632039,-500.0,0.00012818,2]
[404223949,1769976632051,-500.0,0.00012818,2]
[404223951,1769976632060,-500.0,0.00012818,2]
[404223953,1769976632071,-500.0,0.00012818,2]
[404223955,1769976632081,-500.0,0.00012818,2]
[404223957,1769976632091,-500.0,0.00012818,2]
[404223959,1769976632101,-500.0,0.00012818,2]
[404223961,1769976632110,-500.0,0.00012818,2]
[404223963,1769976632119,-500.0,0.00012818,2]
[404223965,1769976632128,-500.0,0.00012818,2]
[404223967,1769976632138,-500.0,0.00012818,2]
[404223969,1769976632147,-500.0,0.00012818,2]
[404223971,1769976632158,-500.0,0.00012818,2]
[404223973,1769976632167,-500.0,0.00012818,2]
[404223975,1769976632175,-500.0,0.00012818,2]
[404223977,1769976632185,-500.0,0.00012818,2]
[404223979,1769976632194,-500.0,0.00012818,2]
[404223980,1769976632203,-500.0,0.00012818,2]
[404223982,1769976632216,-500.0,0.00012818,2]
[404223984,1769976632226,-268.03305924,0.00012818,2]
[404223986,1769976632235,-500.0,0.00012818,2]
[404223988,1769976632244,-500.0,0.00012818,2]
[404223990,1769976632254,-539.01224251,0.00012818,2]
[404223992,1769976632263,-539.01224251,0.00012818,2]
[404223994,1769976632273,-539.01224251,0.00012818,2]
[404223996,1769976632282,-539.01224251,0.00012818,2]
[404223999,1769976632402,-500.0,0.00012818,2]
[404224000,1769976632414,-500.0,0.00012818,2]
[404224001,1769976632424,-500.0,0.00012818,2]
[404224002,1769976632434,-500.0,0.00012818,2]
[404224003,1769976632446,-500.0,0.00012818,2]
[404224004,1769976632456,-539.01224251,0.00012818,2]
[404224005,1769976632465,-500.0,0.00012818,2]
[404224006,1769976632475,-539.01224251,0.00012818,2]
[404224007,1769976632485,-539.01224251,0.00012818,2]
[404224008,1769976632495,-500.0,0.00012818,2]
[404224009,1769976632504,-500.0,0.00012818,2]
[404224010,1769976632514,-500.0,0.00012818,2]
[404224011,1769976632523,-210.82730452,0.00012818,2]
[404224012,1769976632534,-500.0,0.00012818,2]
[404224013,1769976632543,-539.01224251,0.00012818,2]
[404224014,1769976632553,-539.01224251,0.00012818,2]
[404224015,1769976632563,-500.0,0.00012818,2]
[404224016,1769976632572,-539.01224251,0.00012818,2]
[404224017,1769976632582,-539.01224251,0.00012818,2]
[404224018,1769976632591,-539.01224251,0.00012818,2]
[404224019,1769976632601,-539.01224251,0.00012818,2]
[404224020,1769976632610,-539.01224251,0.00012818,2]
[404224021,1769976632619,-539.01224251,0.00012818,2]
[404224022,1769976632629,-539.01224251,0.00012818,2]
[404224023,1769976632639,-539.01224251,0.00012818,2]
[404224024,1769976632650,-539.01224251,0.00012818,2]
[404224025,1769976632659,-539.01224251,0.00012818,2]
[404224026,1769976632669,-539.01224251,0.00012818,2]
[404224027,1769976632678,-539.01224251,0.00012818,2]
[404224028,1769976632688,-539.01224251,0.00012818,2]
[404224029,1769976632698,-539.01224251,0.00012818,2]
[404224030,1769976632707,-539.01224251,0.00012818,2]
[404224031,1769976632716,-539.01224251,0.00012818,2]
[404224032,1769976632727,-539.01224251,0.00012818,2]
[404224033,1769976632739,-539.01224251,0.00012818,2]
[404224034,1769976632749,-539.01224251,0.00012818,2]
[404224035,1769976632760,-539.01224251,0.00012818,2]
[404224036,1769976632770,-539.01224251,0.00012818,2]
[404224037,1769976632782,-539.01224251,0.00012818,2]
[404224038,1769976632792,-539.57962382,0.00012818,2]
[404224039,1769976632804,-539.57962382,0.00012818,2]
[404224040,1769976632814,-539.57962382,0.00012818,2]
[404224041,1769976632823,-539.57962382,0.00012818,2]
[404224042,1769976632835,-539.57962382,0.00012818,2]
[404224043,1769976632844,-539.57962382,0.00012818,2]
[404224044,1769976632853,-539.57962382,0.00012818,2]
[404224045,1769976632866,-539.57962382,0.00012818,2]
[404224046,1769976632876,-539.57962382,0.00012818,2]
[404224047,1769976632886,-539.57962382,0.00012818,2]
[404224048,1769976632896,-539.57962382,0.00012818,2]
[404224049,1769976632906,-539.57962382,0.00012818,2]
[404224050,1769976632915,-539.57962382,0.00012818,2]
[404224051,1769976632924,-539.57962382,0.00012818,2]
[404224052,1769976632934,-539.57962382,0.00012818,2]
[404224053,1769976632944,-539.57962382,0.00012818,2]
[404224054,1769976632954,-539.57962382,0.00012818,2]
[404224055,1769976632963,-539.57962382,0.00012818,2]
[404224056,1769976632972,-539.57962376,0.00012818,2]
[404224057,1769976632981,-500.0,0.00012822,2]
[404224058,1769976632992,-15445.38262142,0.00012823,2]
[404224059,1769976633008,-492.434724,0.00012823,2]
[404224060,1769976633019,-286.62308457,0.00012823,2]
[404224061,1769976633030,-28293.78814086,0.00012823,2]
[404224062,1769976633039,-178.20962131,0.00012874,2]
[404224063,1769976633049,-5961.3454999,0.00012946,2]
[404224064,1769976633058,-300.0,0.00012948,2]
[404224065,1769976633067,-300.0,0.00012948,2]
[404224066,1769976633077,-300.0,0.00012948,2]
[404224067,1769976633086,-300.0,0.00012948,2]
[404224068,1769976633095,-300.0,0.00012948,2]
[404224069,1769976633105,-300.0,0.00012948,2]
[404224070,1769976633115,-300.0,0.00012948,2]
[404224071,1769976633125,-300.0,0.00012948,2]
[404224072,1769976633134,-300.0,0.00012948,2]
[404224073,1769976633143,-300.0,0.00012948,2]
[404224074,1769976633154,-300.0,0.00012948,2]
[404224075,1769976633164,-300.0,0.00012948,2]
[404224076,1769976633173,-300.0,0.00012948,2]
[404224077,1769976633182,-300.0,0.00012948,2]
[404224078,1769976633192,-300.0,0.00012948,2]
[404224079,1769976633201,-600.0,0.00013079,2]
[404224080,1769976633211,-500.0,0.00013096,2]
[404224081,1769976633220,-500.0,0.00013273,2]
[404224082,1769976633230,-500.0,0.00013273,2]
[404224083,1769976633240,-500.0,0.00013273,2]
[404224084,1769976633249,-500.0,0.00013273,2]
[404224085,1769976633261,-500.0,0.00013273,2]
[404224086,1769976633276,-500.0,0.0001337,2]
[404224087,1769976633290,-500.0,0.00013644,2]
[404224088,1769976633305,-500.0,0.00013698,2]
[404224089,1769976633319,-500.0,0.00013698,2]
[404224090,1769976633331,-500.0,0.00013698,2]
[404224091,1769976633341,-500.0,0.00013698,2]
[404224092,1769976633355,-500.0,0.00013698,2]
[404224093,1769976633367,-500.0,0.00013698,2]
[404224094,1769976633381,-500.0,0.00013698,2]
[404224095,1769976633394,-500.0,0.00013698,2]
[404224096,1769976633408,-500.0,0.00013698,2]
[404224097,1769976633421,-500.0,0.00013698,2]
[404224098,1769976633434,-500.0,0.00013698,2]
[404224099,1769976633447,-215.78676046,0.00013698,2]
[404224100,1769976633460,-491.3205396,0.00013698,2]
[404224101,1769976633473,-500.0,0.00013698,2]
[404224102,1769976633485,-500.0,0.00013698,2]
[404224103,1769976633497,-500.0,0.00013698,2]
[404224104,1769976633511,-500.0,0.00013698,2]
[404224105,1769976633523,-500.0,0.00013698,2]
[404224106,1769976633535,-500.0,0.00013698,2]
[404224107,1769976633547,-500.0,0.00013698,2]
[404224108,1769976633560,-500.0,0.00013699,2]
[404224109,1769976633572,-432.33337893,0.00013699,2]
[404224110,1769976633585,-500.0,0.00013699,2]
[404224111,1769976633596,-500.0,0.00013699,2]
[404224112,1769976633607,-500.0,0.00013699,2]
[404224113,1769976633618,-260.36274692,0.00013699,2]
[404224114,1769976633630,-500.0,0.00013699,2]
[404224115,1769976633641,-445.34085934,0.00013699,2]
[404224116,1769976633653,-500.0,0.00013699,2]
[404224117,1769976633666,-533.14592433,0.00013699,2]
[404224118,1769976633678,-500.0,0.00013699,2]
[404224119,1769976633690,-500.0,0.00013699,2]
[404224120,1769976633702,-444.14846695,0.00013699,2]
[404224121,1769976633714,-320.18674252,0.00013699,2]
[404224122,1769976633727,-500.0,0.00013699,2]
[404224123,1769976633739,-500.0,0.00013699,2]
[404224124,1769976633752,-500.0,0.00013699,2]
[404224125,1769976633764,-500.0,0.00013699,2]
[404224126,1769976633774,-500.0,0.00013699,2]
[404224127,1769976633784,-509.02033208,0.00013699,2]
[404224128,1769976633800,-500.0,0.00013699,2]
[404224129,1769976633811,-500.0,0.00013699,2]
[404224130,1769976633823,-500.0,0.00013699,2]
[404224131,1769976633836,-500.0,0.00013699,2]
[404224132,1769976633848,-500.0,0.00013699,2]
[404224133,1769976633859,-500.0,0.00013699,2]
[404224134,1769976633870,-500.0,0.00013699,2]
[404224135,1769976633881,-500.0,0.00013699,2]
[404224136,1769976633892,-500.0,0.00013699,2]
[404224137,1769976633904,-500.41621604,0.00013699,2]
[404224138,1769976633916,-502.63486723,0.00013699,2]
[404224139,1769976633927,-500.0,0.00013699,2]
[404224140,1769976633938,-150.0,0.00013699,2]
[404224141,1769976633948,-500.0,0.00013699,2]
[404224142,1769976633959,-500.0,0.00013699,2]
[404224143,1769976633970,-500.0,0.0001382,2]
[404224144,1769976633981,-500.0,0.0001382,2]
[404224145,1769976633992,-1000.0,0.00013821,2]
[404224146,1769976634004,-1000.0,0.00013821,2]
[404224147,1769976634015,-1000.0,0.00013821,2]
[404224148,1769976634026,-1000.0,0.00013821,2]
[404224149,1769976634037,-1000.0,0.00013821,2]
[404224150,1769976634049,-1072.03635477,0.00013823,2]
[404224151,1769976634059,-500.0,0.00013918,2]
[404224152,1769976634071,-293.41,0.00013961,2]
[404224153,1769976634082,-227.0,0.00014059,2]
[404224154,1769976634093,-420.0,0.00014059,2]
[404224155,1769976634104,-1680.0,0.00014099,2]
[404224156,1769976634115,-150.10841738,0.00014175,2]
[404224157,1769976634126,-500.0,0.00014192,2]
[404224158,1769976634138,-500.0,0.00014246,2]
[404224159,1769976634150,-502.94647227,0.00014247,2]
[404224160,1769976634161,-1000.0,0.00014247,2]
[404224161,1769976634171,-173.18089913,0.00014247,2]
[404224162,1769976634184,-801.22591455,0.00014247,2]
[404224163,1769976634195,-1000.0,0.00014247,2]
[404224164,1769976634207,-176.24550484,0.00014247,2]
[404224165,1769976634218,-627.83021358,0.00014247,2]
[404224166,1769976634230,-511.85365811,0.00014247,2]
[404224167,1769976634241,-160.1222725,0.00014247,2]
[404224168,1769976634252,-475.19194621,0.00014247,2]
[404224169,1769976634262,-928.72037754,0.00014247,2]
[404224170,1769976634272,-1000.0,0.00014247,2]
[404224171,1769976634281,-502.60581445,0.00014247,2]
[404224172,1769976634384,-500.68775555,0.00014247,2]
[404224173,1769976634395,-526.28781016,0.00014247,2]
[404224174,1769976634405,-1000.0,0.00014247,2]
[404224175,1769976634415,-250.0,0.00014247,2]
[404224176,1769976634426,-892.16532056,0.00014273,2]
[404224177,1769976634435,-178.03158972,0.00014273,2]
[404224178,1769976634445,-500.67919006,0.00014368,2]
[404224179,1769976634454,-500.0,0.00014368,2]
[404224180,1769976634463,-1500.0,0.00014368,2]
[404224181,1769976634473,-1500.0,0.00014368,2]
[404224182,1769976634483,-1500.0,0.00014368,2]
[404224183,1769976634493,-1500.0,0.00014368,2]
[404224184,1769976634503,-1500.0,0.00014368,2]
[404224185,1769976634513,-720.0,0.00014387,2]
[404224186,1769976634523,-293.76257835,0.00014387,2]
[404224187,1769976634533,-250.61673348,0.00014447,2]
[404224188,1769976634543,-186.30317127,0.00014451,2]
[404224189,1769976634553,-431.36548199,0.00014466,2]
[404224190,1769976634562,-892.16532056,0.00014481,2]
[404224191,1769976634572,-186.30317127,0.00014659,2]
[404224192,1769976634582,-177.0,0.00014718,2]
[404224193,1769976634591,-500.0,0.00014795,2]
[404224194,1769976634601,-500.0,0.00014795,2]
[404224195,1769976634610,-1197.84696302,0.00014795,2]
[404224196,1769976634619,-500.0,0.00014795,2]
[404224197,1769976634630,-235.79702266,0.00014916,2]
[404224198,1769976634639,-2000.0,0.00014916,2]
[404224199,1769976634650,-295.51234803,0.00014916,2]
[404224200,1769976634659,-2000.0,0.00014916,2]
[404224201,1769976634668,-2000.0,0.00014916,2]
[404224202,1769976634678,-2000.0,0.00014916,2]
[404224203,1769976634687,-892.16532056,0.00015105,2]
[404224204,1769976634698,-186.30317127,0.00015283,2]
[404224205,1769976634708,-300.0,0.00015421,2]
[404224206,1769976634718,-570.0,0.00015509,2]
[404224207,1769976634727,-864.0,0.00015825,2]
[404224208,1769976634737,-500.0,0.00015952,2]
[404224209,1769976634746,-189.0,0.00016718,2]
[404224210,1769976634756,-1000.0,0.00017408,2]
[404224211,1769976634765,-260.9,0.00017471,2]
[404224212,1769976634775,-1000.0,0.00019149,2]
[404224213,1769976634784,-244.0,0.00019149,2]
[404224214,1769976634796,-514.56,0.000192,2]
[404224215,1769976634806,-740.74221401,0.00019355,2]
[404224216,1769976634816,-1000.0,0.00021064,2]
[404224217,1769976634826,-492.0,0.00021064,2]
[404224218,1769976634835,-150.10841738,0.00022575,2]
[404224219,1769976634844,-1000.0,0.0002317,10]
[404224220,1769976634854,-791.0,0.0002317,10]
[404224221,1769976634863,-200.53900554,0.000249,2]
[404224222,1769976634874,-1000.0,0.00025487,10]
[404224223,1769976634883,-284.85768678,0.00025487,10]
[404224224,1769976634895,-715.14231322,0.00025487,10]
[404224225,1769976634905,-1000.0,0.00028036,30]
[404224226,1769976634915,-1000.0,0.00028036,30]
[404224227,1769976634924,-579.0,0.00028036,30]
[404224228,1769976634933,-403.24214243,0.00030164,5]
[404224229,1769976634943,-586.78623235,0.00030839,30]
[404224230,1769976635454,-413.21376765,0.00030839,30]
[404224231,1769976635463,-532.25481217,0.00030839,30]
[404224237,1769976637964,-381.98640698,0.00012822,2]
[404224238,1769976637974,-199.82314843,0.00013699,2]
[404224239,1769976637984,-195.44432491,0.00016438,2]
[404224240,1769976637994,-467.74518783,0.00030839,30]
[404224241,1769976638004,-1000.0,0.00030839,30]
[404224242,1769976638014,-282.24445326,0.00030842,5]
[404224243,1769976638024,-150.10841738,0.00030974,2]
[404224244,1769976638037,-500.0,0.00031471,120]
[404224245,1769976638048,-500.0,0.00032061,120]
[404224247,1769976638058,-1812.59,0.00032877,10]
[404224249,1769976638069,-1510.49,0.00032877,10]
[404224251,1769976638079,-1258.74,0.00032877,10]
[404224253,1769976638090,-243.73995326,0.000332,117]
[404224255,1769976638100,-400.0,0.000334,11]
[404224257,1769976638109,-710.0,0.000334,11]
[404224259,1769976638119,-710.0,0.0003372,11]
[404224261,1769976638128,-1000.0,0.00033923,30]
[404224263,1769976638140,-1000.0,0.00033923,30]
[404224264,1769976638151,-1000.0,0.00033923,30]
[404224265,1769976638168,-715.0,0.00033923,30]
[404224266,1769976638177,-2000.0,0.00034273,7]
[404224267,1769976638187,-306.33832142,0.00034573,2]
[404224268,1769976638197,-551.40897855,0.00034573,2]
[404224269,1769976638207,-214.4177975,0.00034573,2]
[404224270,1769976638216,-385.95203551,0.00034573,2]
[404224271,1769976638227,-514.56,0.000348,30]
[404224272,1769976638236,-500.0,0.00034899,120]
[404224273,1769976638246,-500.0,0.00034989,120]
[404224274,1769976638255,-500.0,0.00034999,120]
[404224275,1769976638265,-500.0,0.00034999,120]
[404224276,1769976638275,-500.0,0.00034999,120]
[404224277,1769976638284,-500.0,0.00034999,120]
[404224278,1769976638293,-605.958705,0.00034999,120]
[404224279,1769976638303,-166.50806293,0.00035039,2]
[404224280,1769976638312,-379.0278615,0.00035699,30]
[404224281,1769976638322,-379.0278615,0.00035699,30]
[404224282,1769976638332,-379.0278615,0.00035699,30]
[404224283,1769976638342,-379.0278615,0.00035699,30]
[404224284,1769976638351,-379.0278615,0.00035699,30]
[404224285,1769976638360,-756.4856831,0.00035699,30]
[404224286,1769976638370,-740.74221401,0.000358,7]
[404224287,1769976638379,-500.0,0.00035892,30]
[404224288,1769976638389,-500.0,0.00035892,30]
[404224289,1769976638399,-253.37170978,0.00035892,30]
[404224290,1769976638411,-500.0,0.00035892,30]
[404224291,1769976638421,-500.0,0.00035892,30]
[404224292,1769976638431,-500.0,0.00035892,30]
[404224293,1769976638441,-164.98871269,0.00035892,30]
[404224294,1769976638451,-500.0,0.00035892,30]
[404224295,1769976638460,-500.0,0.00035892,30]
[404224296,1769976638469,-500.0,0.00035892,30]
[404224297,1769976638479,-207.99041912,0.00036023,2]
[404224298,1769976638488,-500.0,0.00036029,30]
[404224299,1769976638498,-500.0,0.00036029,30]
[404224300,1769976638508,-500.0,0.00036029,30]
[404224301,1769976638517,-601.86770743,0.00036029,30]
[404224302,1769976638527,-500.0,0.00036029,30]
[404224303,1769976638536,-500.0,0.00036029,30]
[404224304,1769976638547,-500.0,0.00036029,30]
[404224305,1769976638556,-500.0,0.00036029,30]
[404224306,1769976638566,-448.4469422,0.00036048,2]
[404224307,1769976638575,-743.0,0.00036115,11]
[404224308,1769976638585,-500.0,0.00036166,30]
[404224309,1769976638594,-500.0,0.00036166,30]
[404224310,1769976638603,-500.0,0.00036166,30]
[404224311,1769976638613,-500.0,0.00036166,30]
[404224312,1769976638622,-450.0,0.00036166,30]
[404224313,1769976638632,-500.0,0.00036166,30]
[404224314,1769976638641,-500.0,0.00036166,30]
[404224315,1769976638727,-1414.004622,0.000362,22]
[404224316,1769976638740,-500.0,0.00036303,30]
[404224317,1769976638749,-400.66953665,0.00036303,30]
[404224318,1769976638759,-500.0,0.00036303,30]
[404224319,1769976638768,-500.0,0.00036303,30]
[404224320,1769976638778,-500.0,0.00036303,30]
[404224321,1769976638787,-500.0,0.00036303,30]
[404224322,1769976638797,-365.78,0.00036438,20]
[404224323,1769976638808,-245.05641761,0.00036439,120]
[404224324,1769976638818,-3598.52,0.000365,14]
[404224325,1769976638827,-193.76,0.000365,7]
[404224326,1769976638838,-504.04995676,0.0003662,30]
[404224327,1769976638848,-500.0,0.00036631,120]
[404224328,1769976638858,-500.0,0.00036631,120]
[404224329,1769976638868,-500.0,0.00036631,120]